bitfinex-derivatives/quotes_BTCF0:USTF0_20241013
["timestamp","ask_amount","ask_price","bid_price","bid_amount"]
[1728794280714,0.17692243,62835.0,62834.0,0.19656268]
[1728794281017,0.17692243,62835.0,62834.0,0.55736268]
[1728794281206,0.09347164,62835.0,62834.0,0.55736268]
[1728794283112,0.09347164,62835.0,62834.0,0.552386]
[1728794283414,0.09347164,62835.0,62834.0,0.55736275]
[1728794284319,0.09347164,62835.0,62834.0,0.66736275]
[1728794286122,0.09347164,62835.0,62834.0,0.662386]
[1728794286318,0.09347164,62835.0,62834.0,0.66736263]
[1728794286518,0.09347164,62835.0,62834.0,0.55736263]
[1728794287021,0.09347164,62835.0,62834.0,0.66736263]
[1728794288124,0.09347164,62835.0,62834.0,0.67532545]
[1728794288522,0.09347164,62835.0,62834.0,0.31452545]
[1728794288728,0.09347164,62835.0,62834.0,0.67532545]
[1728794289328,0.09347164,62835.0,62834.0,0.66736271]
[1728794290227,0.09347164,62835.0,62834.0,0.67532528]
[1728794290929,0.09347164,62835.0,62834.0,0.67532517]
[1728794292618,0.09347164,62835.0,62834.0,0.31452517]
[1728794292826,0.09347164,62835.0,62834.0,0.67532517]
[1728794293129,0.05764007,62835.0,62834.0,0.67532517]
[1728794294229,0.05764007,62835.0,62834.0,0.6673626]
[1728794294815,0.0393,62841.0,62834.0,0.6673626]
[1728794294816,0.0393,62841.0,62840.0,0.079579]
[1728794295021,0.0393,62841.0,62840.0,0.5553556]
[1728794295232,0.09694007,62841.0,62840.0,0.5553556]
[1728794295441,0.09694007,62841.0,62840.0,0.55535536]
[1728794296226,0.09694007,62841.0,62840.0,0.55635536]
[1728794296533,0.10194007,62841.0,62840.0,0.55735536]
[1728794299029,0.10194007,62841.0,62840.0,0.58549914]
[1728794301335,0.18538251,62841.0,62840.0,0.50592014]
[1728794301933,0.18538251,62841.0,62840.0,0.58549914]
[1728794302837,0.18538251,62841.0,62840.0,0.58549921]
[1728794303029,0.18538251,62841.0,62840.0,0.5854992]
[1728794303235,0.18538251,62841.0,62840.0,0.2246992]
[1728794303735,0.18538251,62841.0,62840.0,0.5854992]
[1728794304533,0.18538251,62841.0,62840.0,0.2246992]
[1728794304730,0.18538251,62841.0,62840.0,0.4754992]
[1728794304935,0.18538251,62841.0,62840.0,0.5854992]
[1728794305537,0.28161551,62841.0,62840.0,0.5854992]
[1728794307441,0.28159664,62841.0,62840.0,0.5854992]
[1728794308035,0.18538251,62841.0,62840.0,0.5854992]
[1728794308439,0.28160761,62841.0,62840.0,0.5854992]
[1728794308838,0.28160761,62841.0,62840.0,0.58052278]
[1728794309043,0.28160761,62841.0,62840.0,0.5854994]
[1728794309343,0.10194007,62841.0,62840.0,0.5854994]
[1728794310749,0.10194007,62841.0,62840.0,0.58549934]
[1728794311441,0.10194007,62841.0,62840.0,0.22469934]
[1728794311649,0.10194007,62841.0,62840.0,0.58549934]
[1728794312748,0.10194007,62841.0,62840.0,0.22469934]
[1728794312949,0.10194007,62841.0,62840.0,0.58549934]
[1728794313135,0.10194007,62841.0,62840.0,0.22469934]
[1728794313849,0.10194007,62841.0,62840.0,0.58549934]
[1728794314449,0.10194007,62841.0,62840.0,0.22469934]
[1728794314651,0.10194007,62841.0,62840.0,0.58549934]
[1728794314845,0.10194007,62841.0,62840.0,0.22469934]
[1728794315050,0.10194007,62841.0,62840.0,0.58549934]
[1728794315646,0.10194007,62841.0,62840.0,0.22469934]
[1728794315852,0.10194007,62841.0,62840.0,0.58549934]
[1728794316443,0.10194007,62841.0,62840.0,0.22469934]
[1728794316649,0.28108878,62841.0,62840.0,0.22469934]
[1728794316951,0.28108878,62841.0,62840.0,0.58549934]
[1728794317454,0.28108878,62841.0,62840.0,0.22469934]
[1728794317644,0.28108878,62841.0,62840.0,0.58549934]
[1728794317849,0.28108878,62841.0,62840.0,0.22469934]
[1728794318252,0.28108878,62841.0,62840.0,0.58549934]
[1728794318456,0.28110304,62841.0,62840.0,0.58549934]
[1728794318651,0.28110304,62841.0,62840.0,0.22469934]
[1728794319156,0.28110304,62841.0,62840.0,0.58549934]
[1728794319459,0.28110304,62841.0,62840.0,0.22469934]
[1728794320056,0.28110304,62841.0,62840.0,0.58549934]
[1728794320351,0.28110304,62841.0,62840.0,0.22469934]
[1728794320543,0.28110304,62841.0,62840.0,0.58549934]
[1728794321059,0.28110304,62841.0,62840.0,0.22469934]
[1728794321455,0.28110304,62841.0,62840.0,0.58549934]
[1728794322054,0.28110304,62841.0,62840.0,0.50592034]
[1728794322358,0.28110304,62841.0,62840.0,0.39592034]
[1728794322359,0.22919846,62841.0,62840.0,0.39592034]
[1728794322660,0.22919846,62841.0,62840.0,0.39592039]
[1728794322661,0.40836143,62841.0,62840.0,0.39592039]
[1728794324457,0.10194007,62841.0,62840.0,0.39592039]
[1728794326459,0.10194007,62841.0,62840.0,0.03014378]
[1728794326655,0.10194007,62841.0,62840.0,0.39592041]
[1728794327261,0.10194007,62841.0,62840.0,0.40388301]
[1728794328267,0.10194007,62841.0,62840.0,0.39592041]
[1728794329163,0.10194007,62841.0,62840.0,0.40388301]
[1728794330854,0.10194007,62841.0,62840.0,0.39094378]
[1728794331058,0.10194007,62841.0,62840.0,0.40388301]
[1728794331256,0.10194007,62841.0,62840.0,0.39592041]
[1728794331456,0.22919846,62841.0,62840.0,0.34018215]
[1728794331658,0.32541809,62841.0,62840.0,0.34018215]
[1728794331857,0.40829126,62841.0,62840.0,0.34018215]
[1728794332469,0.40829126,62841.0,62840.0,0.36577663]
[1728794333163,0.40829126,62841.0,62840.0,0.39380547]
[1728794333760,0.40829126,62841.0,62840.0,0.03300547]
[1728794333961,0.40829126,62841.0,62840.0,0.39380547]
[1728794334372,0.40829126,62841.0,62840.0,0.03300547]
[1728794335056,0.40829126,62841.0,62840.0,0.39380547]
[1728794335257,0.40829126,62841.0,62840.0,0.38882884]
[1728794335258,0.31207163,62841.0,62840.0,0.38882884]
[1728794335458,0.88046038,62841.0,62840.0,0.3608]
[1728794337360,0.88046038,62841.0,62839.0,0.02884006]
[1728794337566,0.25091324,62840.0,62837.0,0.3608]
[1728794337866,0.05804007,62838.0,62837.0,0.3608]
[1728794338067,0.14091324,62838.0,62837.0,0.3608]
[1728794339163,0.14091324,62838.0,62837.0,0.3618]
[1728794339469,0.05904007,62838.0,62837.0,0.3618]
[1728794339672,0.06504007,62838.0,62837.0,0.3628]
[1728794344668,0.06504007,62838.0,62837.0,0.002]
[1728794344869,0.06504007,62838.0,62837.0,0.3628]
[1728794346371,0.06504007,62838.0,62837.0,0.002]
[1728794346574,0.06504007,62838.0,62837.0,0.3628]
[1728794346876,0.2427811,62838.0,62837.0,0.3628]
[1728794348273,0.2427811,62838.0,62837.0,0.002]
[1728794348476,0.2427811,62838.0,62837.0,0.3628]
[1728794348979,0.2427811,62838.0,62837.0,0.4728]
[1728794349271,0.2427811,62838.0,62837.0,0.47777686]
[1728794351078,0.2428619,62838.0,62837.0,0.47777686]
[1728794351674,0.2428619,62838.0,62837.0,0.36777686]
[1728794352478,0.2428619,62838.0,62837.0,0.36777673]
[1728794354593,0.06504007,62838.0,62837.0,0.36777673]
[1728794357780,0.06504007,62838.0,62837.0,0.00697673]
[1728794357991,0.06504007,62838.0,62837.0,0.36777673]
[1728794358787,0.06504007,62838.0,62837.0,0.36777667]
[1728794358987,0.0074,62838.0,62837.0,0.36777667]
[1728794366500,0.0074,62838.0,62837.0,0.00697667]
[1728794366686,0.0074,62838.0,62837.0,0.72857667]
[1728794367389,0.0074,62838.0,62837.0,0.72857625]
[1728794369187,0.0074,62838.0,62837.0,0.00697625]
[1728794369388,0.0074,62838.0,62837.0,0.72857625]
[1728794371893,0.0074,62838.0,62837.0,0.72857624]
[1728794374697,0.0074,62838.0,62837.0,0.7285765]
[1728794374998,0.0074,62838.0,62837.0,0.72857651]
[1728794377899,0.06504007,62838.0,62837.0,0.72857651]
[1728794378103,0.06504007,62838.0,62837.0,0.36777651]
[1728794381593,0.06504007,62838.0,62837.0,0.00697651]
[1728794381791,0.06504007,62838.0,62837.0,0.36777651]
[1728794382003,0.06504007,62838.0,62837.0,0.00697651]
[1728794382205,0.06504007,62838.0,62837.0,0.3628]
[1728794382501,0.06504007,62838.0,62837.0,0.36777647]
[1728794383404,0.06504007,62838.0,62837.0,0.00697647]
[1728794383594,0.06504007,62838.0,62837.0,0.36777647]
[1728794386012,0.06504007,62838.0,62837.0,0.3628]
[1728794386307,0.06504007,62838.0,62837.0,0.36777641]
[1728794386497,0.06504007,62838.0,62837.0,0.00697641]
[1728794386702,0.06504007,62838.0,62837.0,0.36777641]
[1728794388615,0.06504007,62838.0,62837.0,0.00697641]
[1728794388822,0.06504007,62838.0,62837.0,0.36777641]
[1728794389510,0.06504007,62838.0,62837.0,0.3628]
[1728794389712,0.06504007,62838.0,62837.0,0.36777641]
[1728794390413,0.06504007,62838.0,62837.0,0.00697641]
[1728794390613,0.06504007,62838.0,62837.0,0.36777641]
[1728794393316,0.06504007,62838.0,62837.0,0.3628]
[1728794393522,0.06504007,62838.0,62837.0,0.36777642]
[1728794394017,0.06504007,62838.0,62837.0,0.00697642]
[1728794394419,0.06504007,62838.0,62837.0,0.36777642]
[1728794394811,0.06504007,62838.0,62837.0,0.00697642]
[1728794395311,0.06504007,62838.0,62837.0,0.36777642]
[1728794397017,0.06504007,62838.0,62837.0,0.36777644]
[1728794397217,0.14740173,62838.0,62837.0,0.36777644]
[1728794397614,0.14740173,62838.0,62837.0,0.37573937]
[1728794398622,0.06504007,62838.0,62837.0,0.37573937]
[1728794399408,0.06504007,62838.0,62837.0,0.01493937]
[1728794401314,0.06504007,62838.0,62837.0,0.002]
[1728794405122,0.66504007,62838.0,62837.0,0.002]
[1728794406718,0.05764007,62834.0,62833.0,0.36066984]
[1728794407115,0.05804007,62834.0,62833.0,0.36066984]
[1728794407921,0.06404007,62834.0,62833.0,0.3618]
[1728794408724,0.06604007,62834.0,62833.0,0.002]
[1728794408927,0.06604007,62834.0,62833.0,0.3628]
[1728794409627,0.06604007,62834.0,62833.0,0.39195185]
[1728794409924,0.06604007,62834.0,62833.0,0.03115185]
[1728794410126,0.06604007,62834.0,62833.0,0.39195185]
[1728794410920,0.06604007,62834.0,62833.0,0.03115185]
[1728794411227,0.06604007,62834.0,62833.0,0.39195185]
[1728794411723,0.06604007,62834.0,62833.0,0.03115185]
[1728794412319,0.06604007,62834.0,62833.0,0.39195185]
[1728794412521,0.06604007,62834.0,62833.0,0.03115185]
[1728794413317,0.06604007,62834.0,62833.0,0.39195185]
[1728794419932,0.06604007,62834.0,62833.0,0.03115185]
[1728794420232,0.06604007,62834.0,62833.0,0.39195185]
[1728794421927,0.14772564,62834.0,62833.0,0.39195185]
[1728794425034,0.14772564,62834.0,62833.0,0.002]
[1728794425231,0.079588,62833.0,62824.0,0.08198503]
[1728794425437,0.05804007,62825.0,62824.0,0.08198503]
[1728794425733,0.23461248,62825.0,62824.0,0.11633959]
[1728794426326,0.23461248,62825.0,62824.0,0.03874159]
[1728794426536,0.23461248,62825.0,62824.0,0.03376373]
[1728794427633,0.23346553,62825.0,62824.0,0.00538703]
[1728794428035,0.23346553,62825.0,62824.0,0.00438703]
[1728794428340,0.23446553,62825.0,62824.0,0.00438703]
[1728794428939,0.23446553,62825.0,62824.0,0.00238703]
[1728794429737,0.05904007,62825.0,62824.0,0.00238703]
[1728794442541,0.05904007,62825.0,62822.0,0.13872019]
[1728794442741,0.05804007,62823.0,62822.0,0.13872019]
[1728794442943,0.05804007,62823.0,62822.0,0.1516631]
[1728794443940,0.05804007,62823.0,62822.0,0.0416631]
[1728794444443,0.05804007,62823.0,62822.0,0.0436631]
[1728794445449,0.05804007,62823.0,62822.0,0.0446631]
[1728794449846,0.05804007,62823.0,62822.0,0.01594291]
[1728794450043,0.05804007,62823.0,62822.0,0.003]
[1728794450246,0.09924007,62823.0,62822.0,0.003]
[1728794452934,0.09924007,62823.0,62822.0,0.03173184]
[1728794453140,0.09924007,62823.0,62822.0,0.003]
[1728794459956,0.18038879,62823.0,62822.0,0.003]
[1728794462243,0.09924007,62823.0,62822.0,0.003]
[1728794462448,0.18038684,62823.0,62822.0,0.003]
[1728794466460,0.18338684,62823.0,62822.0,0.002]
[1728794466659,0.19038684,62823.0,62822.0,0.002]
[1728794466962,0.10924007,62823.0,62822.0,0.002]
[1728794470163,0.06804007,62823.0,62822.0,0.002]
[1728794470665,0.06804007,62823.0,62822.0,0.01494312]
[1728794472059,0.06804007,62823.0,62822.0,0.002]
[1728794472266,0.06804007,62823.0,62822.0,0.01494309]
[1728794472952,0.06804007,62823.0,62822.0,0.002]
[1728794475266,0.14919156,62823.0,62822.0,0.002]
[1728794475662,0.14919156,62823.0,62822.0,0.01494307]
[1728794479867,0.14929399,62823.0,62822.0,0.01494307]
[1728794480066,0.14929399,62823.0,62822.0,0.01494302]
[1728794482070,0.06804007,62823.0,62822.0,0.01494302]
[1728794483863,0.06804007,62823.0,62822.0,0.01494283]
[1728794485475,0.06804007,62823.0,62822.0,0.01494284]
[1728794488964,0.14931494,62823.0,62822.0,0.01494284]
[1728794489766,0.14931438,62823.0,62822.0,0.01494284]
[1728794492876,0.06804007,62823.0,62822.0,0.01494284]
[1728794493971,0.06804007,62823.0,62822.0,0.01494283]
[1728794505189,0.0104,62823.0,62822.0,0.01494283]
[1728794505387,0.00238789,62836.0,62822.0,0.12494283]
[1728794505683,0.00238789,62836.0,62831.0,0.07959]
[1728794506090,0.05764007,62832.0,62831.0,0.07959]
[1728794506885,0.05764007,62832.0,62831.0,0.08059]
[1728794507282,0.05764007,62832.0,62831.0,0.07959]
[1728794507489,0.06464007,62832.0,62831.0,0.08059]
[1728794507791,0.06464007,62832.0,62831.0,0.09453104]
[1728794508187,0.06464007,62832.0,62831.0,0.08159]
[1728794510883,0.007,62832.0,62831.0,0.08159]
[1728794511087,0.06464007,62832.0,62831.0,0.08159]
[1728794511891,0.06464007,62832.0,62831.0,0.1107232]
[1728794512093,0.14587164,62832.0,62831.0,0.0311332]
[1728794512994,0.14587164,62832.0,62831.0,0.1107232]
[1728794513579,0.06464007,62832.0,62831.0,0.1107232]
[1728794513890,0.2396316,62832.0,62831.0,0.1107232]
[1728794517098,0.18199153,62832.0,62831.0,0.1107232]
[1728794517395,0.2396316,62832.0,62831.0,0.1107232]
[1728794520195,0.06464007,62832.0,62831.0,0.1107232]
[1728794529499,0.14543231,62832.0,62831.0,0.1107232]
[1728794533004,0.14543231,62832.0,62831.0,0.1236644]
[1728794533317,0.14543231,62832.0,62831.0,0.12366413]
[1728794533501,0.14543231,62832.0,62831.0,0.1107232]
[1728794536017,0.06464007,62832.0,62831.0,0.1107232]
[1728794538413,0.06464007,62832.0,62831.0,0.12366431]
[1728794543019,0.20776895,62832.0,62831.0,0.06791798]
[1728794543223,0.06464007,62832.0,62831.0,0.06791798]
[1728794543725,0.20776895,62832.0,62831.0,0.09637584]
[1728794544017,0.26440516,62832.0,62831.0,0.09637584]
[1728794544227,0.34485372,62832.0,62831.0,0.08343473]
[1728794544520,0.34485372,62832.0,62831.0,0.09637584]
[1728794547526,0.4879826,62832.0,62831.0,0.09637584]
[1728794549026,0.23864925,62832.0,62831.0,0.08841208]
[1728794550225,0.23964925,62832.0,62831.0,0.08941208]
[1728794550418,0.23464925,62832.0,62831.0,0.09041208]
[1728794551129,0.06064007,62832.0,62831.0,0.09837584]
[1728794555023,0.05764007,62832.0,62831.0,0.09737584]
[1728794555222,0.05864007,62832.0,62831.0,0.09837584]
[1728794557725,0.05864007,62832.0,62831.0,0.09837582]
[1728794558023,0.18602846,62832.0,62831.0,0.09837582]
[1728794558226,0.35990232,62832.0,62831.0,0.09837582]
[1728794558732,0.35990298,62832.0,62831.0,0.09837582]
[1728794558919,0.35890298,62832.0,62831.0,0.09737582]
[1728794559228,0.36090298,62832.0,62831.0,0.09837582]
[1728794559627,0.36090298,62832.0,62831.0,0.08543473]
[1728794559823,0.36090298,62832.0,62831.0,0.09339848]
[1728794560024,0.23351459,62832.0,62831.0,0.10335316]
[1728794561325,0.23351459,62832.0,62831.0,0.10335315]
[1728794563525,0.23352533,62832.0,62831.0,0.10335315]
[1728794564631,0.20276895,62832.0,62831.0,0.09538941]
[1728794565029,0.30915438,62832.0,62831.0,0.0953894]
[1728794565228,0.48303964,62832.0,62831.0,0.0953894]
[1728794565932,0.20276895,62832.0,62831.0,0.0953894]
[1728794566231,0.05964007,62832.0,62831.0,0.0953894]
[1728794570132,0.05964007,62832.0,62831.0,0.09041206]
[1728794570931,0.002,62832.0,62831.0,0.09041206]
[1728794571140,0.05964007,62832.0,62831.0,0.09041206]
[1728794574234,0.05964007,62832.0,62831.0,0.20041206]
[1728794579847,0.05964007,62832.0,62831.0,0.19543473]
[1728794580140,0.05964007,62832.0,62831.0,0.20041206]
[1728794581040,0.30912249,62832.0,62831.0,0.14466588]
[1728794581248,0.48296416,62832.0,62831.0,0.14466588]
[1728794581950,0.48296416,62832.0,62831.0,0.22425588]
[1728794582753,0.48296416,62832.0,62831.0,0.21927855]
[1728794583045,0.48296416,62832.0,62831.0,0.22425588]
[1728794588165,0.05964007,62832.0,62831.0,0.22425588]
[1728794596054,0.33813701,62832.0,62831.0,0.22425588]
[1728794596253,0.48126589,62832.0,62831.0,0.22425588]
[1728794597563,0.23242808,62832.0,62831.0,0.22425588]
[1728794598359,0.23242808,62832.0,62831.0,0.21927855]
[1728794598555,0.23242808,62832.0,62831.0,0.22425586]
[1728794601766,0.23242942,62832.0,62831.0,0.22425586]
[1728794603059,0.05964007,62832.0,62831.0,0.22425586]
[1728794603369,0.0004,62838.0,62831.0,1.09290586]
[1728794603670,0.440363,62853.0,62839.0,0.07958]
[1728794603671,0.0414,62848.0,62839.0,0.07958]
[1728794603968,0.0414,62848.0,62839.0,0.19455731]
[1728794603969,0.05804007,62840.0,62839.0,0.19455731]
[1728794604470,0.0004,62840.0,62839.0,0.19455731]
[1728794605468,0.0414,62848.0,62839.0,0.22597731]
[1728794605673,0.0414,62848.0,62844.0,0.4708]
[1728794606073,0.0414,62848.0,62844.0,0.47577598]
[1728794606461,0.3996,62853.0,62844.0,0.58577598]
[1728794606660,0.3608,62853.0,62844.0,0.58577598]
[1728794606865,0.3608,62853.0,62844.0,0.51927598]
[1728794607070,0.3608,62853.0,62844.0,0.62927598]
[1728794607371,0.3608,62853.0,62844.0,0.51927598]
[1728794607570,0.0411,62855.0,62844.0,0.51927598]
[1728794608278,0.0411,62855.0,62844.0,0.52027598]
[1728794609578,0.0411,62855.0,62844.0,0.52027596]
[1728794611376,0.08256573,62845.0,62844.0,0.46454524]
[1728794613470,0.08256573,62845.0,62844.0,0.10374524]
[1728794613671,0.08256573,62845.0,62844.0,0.46454524]
[1728794614181,0.08256573,62845.0,62844.0,0.10374524]
[1728794614379,0.08256573,62845.0,62844.0,0.46454524]
[1728794615477,0.08256573,62845.0,62844.0,0.57454524]
[1728794615671,0.08256573,62845.0,62844.0,0.4949296]
[1728794617480,0.08256573,62845.0,62844.0,0.13412953]
[1728794617686,0.08256573,62845.0,62844.0,0.49492953]
[1728794618081,0.00238783,62845.0,62844.0,0.49492953]
[1728794618479,0.00238783,62845.0,62844.0,0.36777581]
[1728794618683,0.00238783,62845.0,62844.0,0.47777581]
[1728794619386,0.00238783,62845.0,62844.0,0.11697581]
[1728794619597,0.00238783,62845.0,62844.0,0.47777581]
[1728794619983,0.0411,62855.0,62848.0,0.079568]
[1728794620282,0.05764007,62849.0,62848.0,0.079568]
[1728794620487,0.05764007,62849.0,62848.0,0.08454381]
[1728794621184,0.05764007,62849.0,62848.0,0.08554381]
[1728794621491,0.05764007,62849.0,62848.0,0.19554381]
[1728794622591,0.05764007,62849.0,62848.0,0.19654381]
[1728794624890,0.05764007,62849.0,62848.0,0.22483878]
[1728794625192,0.05764007,62849.0,62848.0,0.21986297]
[1728794625393,0.05764007,62849.0,62848.0,0.22483874]
[1728794625589,0.05764007,62849.0,62848.0,0.58563874]
[1728794626900,0.05764007,62849.0,62848.0,0.22483874]
[1728794627087,0.05764007,62849.0,62848.0,0.58563874]
[1728794627288,0.05764007,62849.0,62848.0,0.22483874]
[1728794627485,0.05764007,62849.0,62848.0,0.11483874]
[1728794627802,0.05764007,62849.0,62848.0,0.58563874]
[1728794628688,0.05764007,62849.0,62848.0,0.22483874]
[1728794628993,0.05764007,62849.0,62848.0,0.22483867]
[1728794629394,0.05764007,62849.0,62848.0,0.58066297]
[1728794629593,0.05764007,62849.0,62848.0,0.58563867]
[1728794629991,0.05764007,62849.0,62848.0,0.22483867]
[1728794630191,0.05764007,62849.0,62848.0,0.58563867]
[1728794630390,0.05764007,62849.0,62848.0,0.22483867]
[1728794630895,0.0411,62855.0,62848.0,0.58066297]
[1728794631096,0.0411,62855.0,62853.0,0.11]
[1728794631295,0.05764007,62854.0,62853.0,0.11]
[1728794631888,0.0411,62855.0,62853.0,0.11]
[1728794632086,0.05764007,62854.0,62853.0,0.189562]
[1728794632296,0.05764007,62854.0,62853.0,0.190562]
[1728794632693,0.05764007,62854.0,62853.0,0.189562]
[1728794632891,0.05764007,62854.0,62853.0,0.190562]
[1728794633092,0.13712723,62854.0,62853.0,0.191562]
[1728794634694,0.13712723,62854.0,62853.0,0.552362]
[1728794635295,0.13714923,62854.0,62853.0,0.552362]
[1728794637900,0.13714923,62854.0,62853.0,0.55733747]
[1728794638295,0.05764007,62854.0,62853.0,0.55733747]
[1728794638699,0.22945302,62854.0,62853.0,0.55733747]
[1728794640010,0.22945302,62854.0,62853.0,0.55733748]
[1728794640196,0.22942047,62854.0,62853.0,0.55733748]
[1728794640398,0.22942047,62854.0,62853.0,0.19653748]
[1728794640728,0.22942047,62854.0,62853.0,0.55733748]
[1728794641214,0.05764007,62854.0,62853.0,0.55733748]
[1728794646910,0.05764007,62854.0,62853.0,0.19653748]
[1728794647108,0.05764007,62854.0,62853.0,0.55733748]
[1728794647499,0.0405,62859.0,62857.0,0.079556]
[1728794647701,0.0405,62859.0,62858.0,0.11497548]
[1728794648102,0.17776229,62859.0,62858.0,0.11497548]
[1728794648309,0.17776229,62859.0,62858.0,0.05925191]
[1728794648508,0.17775671,62859.0,62858.0,0.05925191]
[1728794649017,0.13725671,62859.0,62858.0,0.05925191]
[1728794649414,0.13725671,62859.0,62858.0,0.06125191]
[1728794650312,0.13725671,62859.0,62858.0,0.06125154]
[1728794653107,0.13725671,62859.0,62858.0,0.17125154]
[1728794654113,0.05764007,62859.0,62858.0,0.17125154]
[1728794655008,0.05764007,62859.0,62858.0,0.17025154]
[1728794655213,0.05764007,62859.0,62858.0,0.17125154]
[1728794658712,0.00238692,62862.0,62861.0,0.079552]
[1728794658910,0.00238692,62862.0,62861.0,0.55532711]
[1728794659208,0.06002699,62862.0,62861.0,0.55532711]
[1728794659813,0.06002699,62862.0,62861.0,0.55632711]
[1728794661810,0.06002699,62862.0,62861.0,0.55732711]
[1728794665205,0.06002699,62862.0,62861.0,0.552352]
[1728794665412,0.06002699,62862.0,62861.0,0.55732667]
[1728794667717,0.06002699,62862.0,62861.0,0.19652667]
[1728794668015,0.06002699,62862.0,62861.0,0.55732667]
[1728794668721,0.06002699,62862.0,62861.0,0.19652667]
[1728794668918,0.06002699,62862.0,62861.0,0.552352]
[1728794669122,0.06002699,62862.0,62861.0,0.55732667]
[1728794670928,0.05764007,62862.0,62861.0,0.55732667]
[1728794671424,0.13707992,62862.0,62861.0,0.55732667]
[1728794672222,0.13707992,62862.0,62861.0,0.19652667]
[1728794672623,0.13707992,62862.0,62861.0,0.55732667]
[1728794673124,0.13709975,62862.0,62861.0,0.55732667]
[1728794675317,0.13709975,62862.0,62861.0,0.19652667]
[1728794675722,0.13709975,62862.0,62861.0,0.55732667]
[1728794677214,0.13709975,62862.0,62861.0,0.19652667]
[1728794677419,0.13709975,62862.0,62861.0,0.55732667]
[1728794678119,0.13714452,62862.0,62861.0,0.55732667]
[1728794678319,0.05764007,62862.0,62861.0,0.47777467]
[1728794678722,0.05764007,62862.0,62861.0,0.11697467]
[1728794678922,0.05764007,62862.0,62861.0,0.55732667]
[1728794679918,0.05764007,62862.0,62861.0,0.36777467]
[1728794680125,0.05764007,62862.0,62861.0,0.3628]
[1728794680327,0.05764007,62862.0,62861.0,0.36777479]
[1728794680624,0.05764007,62862.0,62861.0,0.36777484]
[1728794680826,0.05764007,62862.0,62861.0,0.00697484]
[1728794681726,0.05764007,62862.0,62861.0,0.00697487]
[1728794686432,0.13651958,62862.0,62861.0,0.00697487]
[1728794686637,0.22810239,62862.0,62861.0,0.00697487]
[1728794687737,0.22812173,62862.0,62861.0,0.00697487]
[1728794688038,0.22812173,62862.0,62861.0,0.11697487]
[1728794688633,0.22812173,62862.0,62861.0,0.112]
[1728794688834,0.22812173,62862.0,62861.0,0.11697495]
[1728794692733,0.22814778,62862.0,62861.0,0.11697495]
[1728794693343,0.05764007,62862.0,62861.0,0.11697495]
[1728794694828,0.05764007,62862.0,62848.0,0.00238617]
[1728794694829,0.079557,62858.0,62848.0,0.00238617]
[1728794695033,0.11,62851.0,62848.0,0.00238617]
[1728794695332,0.0004,62849.0,62848.0,0.00238617]
[1728794695947,0.0004,62849.0,62848.0,0.03092531]
[1728794696137,0.0004,62849.0,62848.0,0.00238617]
[1728794697737,0.0014,62849.0,62848.0,0.00338617]
[1728794698345,0.0034,62849.0,62848.0,0.00338617]
[1728794698546,0.0034,62849.0,62848.0,0.11338617]
[1728794699048,0.0034,62849.0,62848.0,0.11438617]
[1728794700447,0.0034,62849.0,62848.0,0.112]
[1728794701148,0.0034,62849.0,62848.0,0.002]
[1728794701547,0.0034,62849.0,62848.0,0.112]
[1728794703848,0.0034,62849.0,62848.0,0.222]
[1728794704048,0.0034,62849.0,62848.0,0.1454]
[1728794705141,0.0034,62849.0,62848.0,0.1444]
[1728794705142,0.0024,62849.0,62848.0,0.1444]
[1728794705852,0.0024,62849.0,62848.0,0.1434]
[1728794706946,0.0024,62849.0,62848.0,0.14837536]
[1728794707850,0.0024,62849.0,62848.0,0.14837535]
[1728794710151,0.0024,62849.0,62848.0,0.14837536]
[1728794712645,0.0024,62849.0,62848.0,0.50917536]
[1728794714951,0.0024,62849.0,62848.0,0.14837536]
[1728794715153,0.0024,62849.0,62848.0,0.50917536]
[1728794720451,0.0024,62849.0,62848.0,0.14837536]
[1728794720653,0.0024,62849.0,62848.0,0.11497536]
[1728794721559,0.0024,62849.0,62848.0,0.2100533]
[1728794722055,0.0024,62849.0,62848.0,0.11497536]
[1728794723158,0.0024,62849.0,62848.0,0.2100533]
[1728794723655,0.0024,62849.0,62848.0,0.11497536]
[1728794724956,0.0024,62849.0,62848.0,0.11]
[1728794725159,0.0024,62849.0,62848.0,0.11497524]
[1728794726356,0.0024,62849.0,62848.0,0.47577524]
[1728794728863,0.0024,62849.0,62848.0,0.36577537]
[1728794729070,0.0024,62849.0,62848.0,0.22497537]
[1728794732569,0.0024,62849.0,62848.0,0.22]
[1728794732763,0.0024,62849.0,62848.0,0.22497551]
[1728794736375,0.0024,62849.0,62848.0,0.22497552]
[1728794740079,0.0024,62849.0,62848.0,0.22]
[1728794740378,0.0024,62849.0,62848.0,0.22497552]
[1728794740765,0.0024,62849.0,62848.0,0.22]
[1728794741478,0.0024,62849.0,62848.0,0.22497551]
[1728794753578,0.0024,62849.0,62848.0,0.32014542]
[1728794757185,0.0024,62849.0,62848.0,0.22497551]
[1728794759691,0.2224,62856.0,62852.0,0.079563]
[1728794759888,0.2224,62856.0,62855.0,0.11]
[1728794760089,0.2224,62856.0,62855.0,0.11497551]
[1728794760593,0.30108328,62856.0,62855.0,0.11497551]
[1728794761088,0.30208328,62856.0,62855.0,0.11497551]
[1728794761290,0.30208328,62856.0,62855.0,0.22597551]
[1728794761291,0.001,62856.0,62855.0,0.22597551]
[1728794761479,0.001,62856.0,62855.0,0.11597551]
[1728794762482,0.0328,62860.0,62855.0,0.11697551]
[1728794762690,0.0328,62860.0,62859.0,0.11]
[1728794762983,0.0328,62860.0,62859.0,0.11497551]
[1728794764889,0.0328,62860.0,62859.0,0.11597551]
[1728794765393,0.0328,62860.0,62859.0,0.11697551]
[1728794765596,0.0328,62860.0,62859.0,0.14621763]
[1728794770407,0.0328,62860.0,62859.0,0.14621728]
[1728794774007,0.0328,62860.0,62859.0,0.14621739]
[1728794775614,0.16005577,62860.0,62859.0,0.09049429]
[1728794776407,0.25145552,62860.0,62859.0,0.09049429]
[1728794776606,0.33017736,62860.0,62859.0,0.09049429]
[1728794777216,0.33017736,62860.0,62859.0,0.09049434]
[1728794777810,0.33017736,62860.0,62859.0,0.08551902]
[1728794778017,0.33017736,62860.0,62859.0,0.09049424]
[1728794778406,0.33017736,62860.0,62859.0,0.08551902]
[1728794778607,0.33013985,62860.0,62859.0,0.09049433]
[1728794779711,0.33013985,62860.0,62859.0,0.11850335]
[1728794780506,0.20292159,62860.0,62859.0,0.11850335]
[1728794781408,0.33013985,62860.0,62859.0,0.11850335]
[1728794781611,0.20292159,62860.0,62859.0,0.11850335]
[1728794781816,0.20292159,62860.0,62859.0,0.11850323]
[1728794782016,0.20292159,62860.0,62859.0,0.12347842]
[1728794782216,0.33013985,62860.0,62859.0,0.11850323]
[1728794782516,0.32919067,62860.0,62859.0,0.11850323]
[1728794783309,0.20197241,62860.0,62859.0,0.11850323]
[1728794783711,0.0328,62860.0,62859.0,0.11850323]